{"text_format":"3","workbook":"xlsx","n_sheets":1,"sheets":["Протокол ШЭ ВОШ по предмету"],"not_rendered":{"defined_names":2},"read":"whole","date_system":"1900"}

{"sheet":"Протокол ШЭ ВОШ по предмету","index":0,"n_rows":38,"n_cols":11,"rows_kept":38}
["№","Код ОО","Наименование ОО","Фамилия","Класс обучения","Класс участия","Балл","Добавлено баллов по итогам апелляций","Итоговый балл","Максимальный балл","Статус"]
[null,460015,"Муниципальное бюджетное общеобразовательное учреждение «Сармановская гимназия» Сармановского муниципального района Республики Татарстан","Миннуллина",7,7,22,null,{"$f":"H2+G2","v":22},50,"призер"]
[null,460015,"Муниципальное бюджетное общеобразовательное учреждение «Сармановская гимназия» Сармановского муниципального района Республики Татарстан","Ахметов",7,7,15,null,15,50]
[null,460017,"Муниципальное бюджетное общеобразовательное учреждение «Сармановская средняя общеобразовательная школа» Сармановского муниципального района Республики Татарстан","Урматова",7,7,24,null,24,50,"призер"]
[null,460010,"Муниципальное бюджетное общеобразовательное учреждение \"Лешев-Тамакская основная общеобразовательная школа\" Сармановского муниципального района Республики Татарстан","Шайдуллин",8,8,4,null,4,50]
[null,460017,"Муниципальное бюджетное общеобразовательное учреждение «Сармановская средняя общеобразовательная школа» Сармановского муниципального района Республики Татарстан","Турсунова",8,8,20,null,20,50,"призер"]
[null,460017,"Муниципальное бюджетное общеобразовательное учреждение «Сармановская средняя общеобразовательная школа» Сармановского муниципального района Республики Татарстан","Аюпова",8,8,16,null,16,50]
[null,460015,"Муниципальное бюджетное общеобразовательное учреждение «Сармановская гимназия» Сармановского муниципального района Республики Татарстан","Кузнецова",8,8,13,null,13,50]
[null,460015,"Муниципальное бюджетное общеобразовательное учреждение «Сармановская гимназия» Сармановского муниципального района Республики Татарстан","Ихсанова",8,8,9,null,9,50]
[null,460017,"Муниципальное бюджетное общеобразовательное учреждение «Сармановская средняя общеобразовательная школа» Сармановского муниципального района Республики Татарстан","Дьяконова",8,8,1,null,1,50]
[null,460015,"Муниципальное бюджетное общеобразовательное учреждение «Сармановская гимназия» Сармановского муниципального района Республики Татарстан","Миннеяров",8,8,7,null,7,50]
[null,460010,"Муниципальное бюджетное общеобразовательное учреждение \"Лешев-Тамакская основная общеобразовательная школа\" Сармановского муниципального района Республики Татарстан","Сахапова",9,9,4,null,4,50]
[null,460003,"Муниципальное бюджетное общеобразовательное учреждение «Азалаковская основная общеобразовательная школа» Сармановского муниципального района Республики Татарстан","Хамидуллина",9,9,25,null,25,50,"победитель"]
[null,460015,"Муниципальное бюджетное общеобразовательное учреждение «Сармановская гимназия» Сармановского муниципального района Республики Татарстан","Хамматова",9,9,10,null,10,50]
[null,460017,"Муниципальное бюджетное общеобразовательное учреждение «Сармановская средняя общеобразовательная школа» Сармановского муниципального района Республики Татарстан","Юсупова",9,9,10,null,10,50]
[null,460005,"Муниципальное бюджетное общеобразовательное учреждение \"Альметьевская средняя общеобразовательная школа имени Мурада Рамзи\" Сармановского муниципального района РТ","Насибуллина",9,9,20,null,20,50,"призер"]
[null,460017,"Муниципальное бюджетное общеобразовательное учреждение «Сармановская средняя общеобразовательная школа» Сармановского муниципального района Республики Татарстан","Мугинова",9,9,9,null,9,50]
[null,460017,"Муниципальное бюджетное общеобразовательное учреждение «Сармановская средняя общеобразовательная школа» Сармановского муниципального района Республики Татарстан","Халиуллина",9,9,11,null,11,50]
[null,460015,"Муниципальное бюджетное общеобразовательное учреждение «Сармановская гимназия» Сармановского муниципального района Республики Татарстан","Салихова",10,10,31,null,31,50,"призер"]
[null,460006,"муниципальное бюджетное общеобразовательное учреждение «Большенуркеевская средняя общеобразовательная школа» Сармановского муниципального района Республики Татарстан.","Назмутдинова",10,10,28,null,28,50,"призер"]
[null,460015,"Муниципальное бюджетное общеобразовательное учреждение «Сармановская гимназия» Сармановского муниципального района Республики Татарстан","Латипова",10,10,35,null,35,50,"победитель"]
[null,460015,"Муниципальное бюджетное общеобразовательное учреждение «Сармановская гимназия» Сармановского муниципального района Республики Татарстан","Рашитова",10,10,28,null,28,50,"призер"]
[null,460017,"Муниципальное бюджетное общеобразовательное учреждение «Сармановская средняя общеобразовательная школа» Сармановского муниципального района Республики Татарстан","Ибрагимова",11,11,35,null,35,50,"призер"]
[null,460017,"Муниципальное бюджетное общеобразовательное учреждение «Сармановская средняя общеобразовательная школа» Сармановского муниципального района Республики Татарстан","Шарафутдинова",11,11,26,null,26,50,"призер"]
[null,460018,"Муниципальное бюджетное общеобразовательное учреждение «Старокаширская средняя общеобразовательная школа имени Зинната Хасанова» Сармановского муниципального района Республики Татарстан","Миннегулов",11,11,14,null,14,50]
[null,460015,"Муниципальное бюджетное общеобразовательное учреждение «Сармановская гимназия» Сармановского муниципального района Республики Татарстан","Гисматуллина",9,9,20,null,20,50,"призер"]
[null,460015,"Муниципальное бюджетное общеобразовательное учреждение «Сармановская гимназия» Сармановского муниципального района Республики Татарстан","Латыпова",9,9,6,null,6,50]
[null,460010,"Муниципальное бюджетное общеобразовательное учреждение \"Лешев-Тамакская основная общеобразовательная школа\" Сармановского муниципального района Республики Татарстан","Гарифуллина",7,7,5,null,5,50]
[null,460011,"Муниципальное бюджетное общеобразовательное учреждение «Лякинская основная общеобразовательная школа» Сармановского муниципального района РТ - Татарстан Республикасы","Яфаров",9,9,7,null,7,50]
[null,460017,"Муниципальное бюджетное общеобразовательное учреждение «Сармановская средняя общеобразовательная школа» Сармановского муниципального района Республики Татарстан","Валиахметова",10,10,17,null,17,50]
[null,460008,"Муниципальное бюджетное общеобразовательное учреждение «Кавзияковская основная общеобразовательная школа» Сармановского муниципального района Республики Татарстан","Фатихова",9,9,6,null,6,50]
[null,460015,"Муниципальное бюджетное общеобразовательное учреждение «Сармановская гимназия» Сармановского муниципального района Республики Татарстан","Хуснутдинова",11,11,23.5,null,23.5,50]
[null,460014,"Муниципальное бюджетное общеобразовательное учреждение «Саклов-Башская средняя общеобразовательная школа» Сармановского муниципального района Республики Татарстан","Габидуллина",9,9,7,null,7,50]
[null,460006,"муниципальное бюджетное общеобразовательное учреждение «Большенуркеевская средняя общеобразовательная школа» Сармановского муниципального района Республики Татарстан.","Саетова",11,11,10,null,10,50]
[null,460018,"Муниципальное бюджетное общеобразовательное учреждение «Старокаширская средняя общеобразовательная школа имени Зинната Хасанова» Сармановского муниципального района Республики Татарстан","Султанова",11,11,15,null,15,50]
[null,460015,"Муниципальное бюджетное общеобразовательное учреждение «Сармановская гимназия» Сармановского муниципального района Республики Татарстан","Кравцова",11,11,14.5,null,14.5,50]
[null,460017,"Муниципальное бюджетное общеобразовательное учреждение «Сармановская средняя общеобразовательная школа» Сармановского муниципального района Республики Татарстан","Хатипова",11,11,38,null,38,50,"победитель"]
[null,460018,"Муниципальное бюджетное общеобразовательное учреждение «Старокаширская средняя общеобразовательная школа имени Зинната Хасанова» Сармановского муниципального района Республики Татарстан","Калимуллина",10,10,14,null,14,50]